[Event "Titled Tuesday Blitz November 22 Early 2022"]
[White "Orzech, Dominik"]
[Black "Roque Sola, Gisela"]
[WhiteFideId "1115065"]
[BlackFideId "5120241"]
[WhiteElo "2272"]
[BlackElo "1961"]
[Result "1-0"]
[Round "04"]
[TimeControl "180+1"]
[Date "2022.11.23"]
[WhiteClock "0:01:33"]
[BlackClock "0:00:01"]

1. g3 {[%clk 0:02:56]}  Nf6 {[%clk 0:02:58]} 2. Bg2 {[%clk 0:02:57]}  d5 {[%clk 0:02:53]} 3. c4 {[%clk 0:02:58]}  dxc4 {[%clk 0:02:52]} 4. Nf3 {[%clk 0:02:57]}  g6 {[%clk 0:02:52]} 5. Na3 {[%clk 0:02:51]}  Bg7 {[%clk 0:02:51]} 6. Nxc4 {[%clk 0:02:50]}  O-O {[%clk 0:02:51]} 7. O-O {[%clk 0:02:50]}  c6 {[%clk 0:02:42]} 8. d4 {[%clk 0:02:48]}  Be6 {[%clk 0:02:37]} 9. Nfe5 {[%clk 0:02:47]}  Bd5 {[%clk 0:02:33]} 10. f3 {[%clk 0:02:42]}  Nbd7 {[%clk 0:01:35]} 11. e4 {[%clk 0:02:38]}  Bxc4 {[%clk 0:01:31]} 12. Nxc4 {[%clk 0:02:38]}  Nb6 {[%clk 0:01:30]} 13. Ne3 {[%clk 0:02:37]}  Qd7 {[%clk 0:01:28]} 14. b3 {[%clk 0:02:36]}  Rad8 {[%clk 0:01:27]} 15. Bb2 {[%clk 0:02:36]}  Ne8 {[%clk 0:01:24]} 16. Nc2 {[%clk 0:02:32]}  c5 {[%clk 0:01:23]} 17. e5 {[%clk 0:02:31]}  cxd4 {[%clk 0:01:22]} 18. Bxd4 {[%clk 0:02:30]}  Nc7 {[%clk 0:01:17]} 19. Qe2 {[%clk 0:02:29]}  Ne6 {[%clk 0:01:14]} 20. Bf2 {[%clk 0:02:22]}  Qd2 {[%clk 0:01:12]} 21. Rfe1 {[%clk 0:02:22]}  Qxe2 {[%clk 0:01:07]} 22. Rxe2 {[%clk 0:02:23]}  Nd5 {[%clk 0:01:00]} 23. f4 {[%clk 0:02:17]}  Nc3 {[%clk 0:01:00]} 24. Re3 {[%clk 0:02:16]}  Nd5 {[%clk 0:00:55]} 25. Rd3 {[%clk 0:02:15]}  Ndxf4 {[%clk 0:00:24]} 26. Rxd8 {[%clk 0:02:09]}  Rxd8 {[%clk 0:00:25]} 27. gxf4 {[%clk 0:02:09]}  Nxf4 {[%clk 0:00:24]} 28. Ne3 {[%clk 0:01:55]}  Bxe5 {[%clk 0:00:22]} 29. Rd1 {[%clk 0:01:52]}  Rxd1+ {[%clk 0:00:14]} 30. Nxd1 {[%clk 0:01:53]}  Nxg2 {[%clk 0:00:14]} 31. Kxg2 {[%clk 0:01:53]}  b6 {[%clk 0:00:15]} 32. h3 {[%clk 0:01:52]}  f5 {[%clk 0:00:15]} 33. Kf3 {[%clk 0:01:52]}  Bd6 {[%clk 0:00:15]} 34. Ne3 {[%clk 0:01:52]}  e5 {[%clk 0:00:15]} 35. Nc4 {[%clk 0:01:52]}  Bc7 {[%clk 0:00:13]} 36. a4 {[%clk 0:01:51]}  Kf7 {[%clk 0:00:13]} 37. b4 {[%clk 0:01:50]}  Ke6 {[%clk 0:00:13]} 38. b5 {[%clk 0:01:50]}  e4+ {[%clk 0:00:13]} 39. Ke3 {[%clk 0:01:48]}  Kd5 {[%clk 0:00:11]} 40. Nd2 {[%clk 0:01:48]}  f4+ {[%clk 0:00:11]} 41. Ke2 {[%clk 0:01:47]}  e3 {[%clk 0:00:11]} 42. Bxe3 {[%clk 0:01:47]}  fxe3 {[%clk 0:00:12]} 43. Kxe3 {[%clk 0:01:48]}  Bd8 {[%clk 0:00:12]} 44. Kd3 {[%clk 0:01:48]}  Bg5 {[%clk 0:00:11]} 45. Ne4 {[%clk 0:01:48]}  Be7 {[%clk 0:00:10]} 46. Nc3+ {[%clk 0:01:44]}  Kc5 {[%clk 0:00:09]} 47. Ke4 {[%clk 0:01:45]}  Kb4 {[%clk 0:00:09]} 48. Nd5+ {[%clk 0:01:44]}  Kxa4 {[%clk 0:00:09]} 49. Nxe7 {[%clk 0:01:45]}  Kxb5 {[%clk 0:00:09]} 50. h4 {[%clk 0:01:42]}  a5 {[%clk 0:00:10]} 51. Nd5 {[%clk 0:01:42]}  a4 {[%clk 0:00:10]} 52. Kd3 {[%clk 0:01:41]}  Kc5 {[%clk 0:00:09]} 53. Nf6 {[%clk 0:01:41]}  h6 {[%clk 0:00:07]} 54. Ng4 {[%clk 0:01:40]}  g5 {[%clk 0:00:06]} 55. h5 {[%clk 0:01:40]}  b5 {[%clk 0:00:05]} 56. Nxh6 {[%clk 0:01:40]}  b4 {[%clk 0:00:05]} 57. Nf5 {[%clk 0:01:37]}  a3 {[%clk 0:00:05]} 58. Kc2 {[%clk 0:01:36]}  Kc4 {[%clk 0:00:03]} 59. Nd6+ {[%clk 0:01:33]}  Kd5 {[%clk 0:00:02]} 60. h6 {[%clk 0:01:33]}  a2 {[%clk 0:00:02]} 61. Kb2 {[%clk 0:01:33]}  g4 {[%clk 0:00:01]} 62. h7 {[%clk 0:01:32]}  g3 {[%clk 0:00:02]} 63. h8=Q {[%clk 0:01:32]}  g2 {[%clk 0:00:02]} 64. Qg8+ {[%clk 0:01:32]}  Kxd6 {[%clk 0:00:01]} 65. Qxg2 {[%clk 0:01:33]} 1-0


[Site "https://www.chess.com"]

[Event "Titled Tuesday Blitz November 22 Early 2022"]
[White "Pranav, V"]
[Black "Urazayev, Arystanbek"]
[WhiteFideId "25060783"]
[BlackFideId "13709810"]
[WhiteElo "2430"]
[BlackElo "2441"]
[Result "1-0"]
[Round "04"]
[TimeControl "180+1"]
[Date "2022.11.22"]
[WhiteClock "0:01:00"]
[BlackClock "0:00:16"]

1. e4 {[%clk 0:03:00]}  c5 {[%clk 0:02:59]} 2. Nf3 {[%clk 0:03:01]}  Nc6 {[%clk 0:03:00]} 3. Bb5 {[%clk 0:03:01]}  e6 {[%clk 0:03:00]} 4. Bxc6 {[%clk 0:03:00]}  bxc6 {[%clk 0:02:59]} 5. d3 {[%clk 0:03:01]}  Ne7 {[%clk 0:02:57]} 6. O-O {[%clk 0:03:00]}  Ng6 {[%clk 0:02:54]} 7. Ng5 {[%clk 0:03:00]}  f6 {[%clk 0:02:50]} 8. Nh3 {[%clk 0:03:00]}  d5 {[%clk 0:02:50]} 9. Nc3 {[%clk 0:02:59]}  Ba6 {[%clk 0:02:40]} 10. Qe2 {[%clk 0:02:47]}  c4 {[%clk 0:02:33]} 11. exd5 {[%clk 0:02:40]}  e5 {[%clk 0:02:28]} 12. dxc6 {[%clk 0:02:05]}  cxd3 {[%clk 0:02:27]} 13. Qe4 {[%clk 0:02:05]}  Qd4 {[%clk 0:01:50]} 14. Qf5 {[%clk 0:01:54]}  Bc8 {[%clk 0:01:07]} 15. Qf3 {[%clk 0:01:36]}  Bg4 {[%clk 0:01:02]} 16. Qg3 {[%clk 0:01:35]}  h5 {[%clk 0:00:34]} 17. Nb5 {[%clk 0:01:29]}  Qb6 {[%clk 0:00:23]} 18. Qxd3 {[%clk 0:01:27]}  Rd8 {[%clk 0:00:23]} 19. Qxg6+ {[%clk 0:01:26]}  Ke7 {[%clk 0:00:21]} 20. Ng5 {[%clk 0:01:23]}  Qxb5 {[%clk 0:00:16]} 21. Qf7+ {[%clk 0:01:00]} 1-0


[Site "https://www.chess.com"]

[Event "Titled Tuesday Blitz November 22 Early 2022"]
[White "Przybylski, Wojciech"]
[Black "Gardezi, Arsal"]
[WhiteFideId "1117599"]
[BlackFideId "30949521"]
[WhiteElo "2221"]
[BlackElo "1906"]
[Result "1-0"]
[Round "04"]
[TimeControl "180+1"]
[Date "2022.11.23"]
[WhiteClock "0:00:47"]
[BlackClock "0:00:20"]

1. e4 {[%clk 0:02:59]}  e6 {[%clk 0:02:55]} 2. d4 {[%clk 0:02:59]}  d5 {[%clk 0:02:53]} 3. Nc3 {[%clk 0:02:59]}  dxe4 {[%clk 0:02:53]} 4. Nxe4 {[%clk 0:02:59]}  Nd7 {[%clk 0:02:53]} 5. Bd3 {[%clk 0:02:56]}  b6 {[%clk 0:02:53]} 6. Qf3 {[%clk 0:02:54]}  Rb8 {[%clk 0:02:39]} 7. Ne2 {[%clk 0:02:35]}  Bb7 {[%clk 0:02:35]} 8. Bf4 {[%clk 0:02:35]}  Ngf6 {[%clk 0:02:35]} 9. O-O {[%clk 0:02:31]}  Be7 {[%clk 0:02:22]} 10. Rae1 {[%clk 0:02:24]}  O-O {[%clk 0:02:22]} 11. N2c3 {[%clk 0:02:20]}  Nxe4 {[%clk 0:02:19]} 12. Bxe4 {[%clk 0:02:13]}  Bxe4 {[%clk 0:02:19]} 13. Nxe4 {[%clk 0:02:13]}  Nf6 {[%clk 0:02:19]} 14. c3 {[%clk 0:02:12]}  Rc8 {[%clk 0:02:15]} 15. Be5 {[%clk 0:02:05]}  c5 {[%clk 0:02:01]} 16. dxc5 {[%clk 0:02:04]}  bxc5 {[%clk 0:02:00]} 17. Rd1 {[%clk 0:01:54]}  Nd5 {[%clk 0:01:59]} 18. c4 {[%clk 0:01:52]}  f6 {[%clk 0:01:50]} 19. Bg3 {[%clk 0:01:51]}  f5 {[%clk 0:01:47]} 20. Nc3 {[%clk 0:01:50]}  f4 {[%clk 0:01:43]} 21. Nxd5 {[%clk 0:01:34]}  exd5 {[%clk 0:01:01]} 22. Rxd5 {[%clk 0:01:23]}  Qc7 {[%clk 0:01:01]} 23. Qe4 {[%clk 0:00:55]}  fxg3 {[%clk 0:00:58]} 24. Qe6+ {[%clk 0:00:55]}  Kh8 {[%clk 0:00:57]} 25. Rd7 {[%clk 0:00:54]}  gxf2+ {[%clk 0:00:23]} 26. Kh1 {[%clk 0:00:53]}  Qc6 {[%clk 0:00:20]} 27. Qxe7 {[%clk 0:00:47]}  Rce8 {[%clk 0:00:20]} 28. Qxg7# {[%clk 0:00:47]} 1-0


[Site "https://www.chess.com"]

[Event "Titled Tuesday Blitz November 22 Early 2022"]
[White "Safin, Robert"]
[Black "Aradhya, Garg"]
[WhiteFideId "34189120"]
[BlackFideId "25006746"]
[WhiteElo "2253"]
[BlackElo "2223"]
[Result "0-1"]
[Round "04"]
[TimeControl "180+1"]
[Date "2022.11.23"]
[WhiteClock "0:00:04"]
[BlackClock "0:01:55"]

1. e4 {[%clk 0:02:03]}  e5 {[%clk 0:02:59]} 2. Nf3 {[%clk 0:02:02]}  Nf6 {[%clk 0:02:59]} 3. Nxe5 {[%clk 0:01:48]}  d6 {[%clk 0:02:59]} 4. Nf3 {[%clk 0:01:46]}  Nxe4 {[%clk 0:03:00]} 5. Qe2 {[%clk 0:01:46]}  Qe7 {[%clk 0:02:59]} 6. d3 {[%clk 0:01:45]}  Nf6 {[%clk 0:02:59]} 7. Nc3 {[%clk 0:01:43]}  Nc6 {[%clk 0:02:57]} 8. Bg5 {[%clk 0:01:33]}  Qxe2+ {[%clk 0:02:56]} 9. Bxe2 {[%clk 0:01:33]}  Be7 {[%clk 0:02:56]} 10. O-O-O {[%clk 0:01:28]}  Be6 {[%clk 0:02:55]} 11. Nb5 {[%clk 0:01:18]}  O-O-O {[%clk 0:02:54]} 12. Nbd4 {[%clk 0:01:19]}  Nxd4 {[%clk 0:02:51]} 13. Nxd4 {[%clk 0:01:19]}  Bd7 {[%clk 0:02:51]} 14. Rhe1 {[%clk 0:01:18]}  h6 {[%clk 0:02:51]} 15. Bh4 {[%clk 0:01:14]}  Rde8 {[%clk 0:02:49]} 16. h3 {[%clk 0:00:56]}  c5 {[%clk 0:02:21]} 17. Nb3 {[%clk 0:00:50]}  Nd5 {[%clk 0:02:21]} 18. Bxe7 {[%clk 0:00:48]}  Rxe7 {[%clk 0:02:22]} 19. Bf3 {[%clk 0:00:47]}  Rhe8 {[%clk 0:02:18]} 20. Kd2 {[%clk 0:00:38]}  Rxe1 {[%clk 0:02:11]} 21. Rxe1 {[%clk 0:00:39]}  Rxe1 {[%clk 0:02:10]} 22. Kxe1 {[%clk 0:00:40]}  Nb4 {[%clk 0:02:10]} 23. Kd2 {[%clk 0:00:40]}  Nxa2 {[%clk 0:02:10]} 24. c3 {[%clk 0:00:40]}  Be6 {[%clk 0:02:10]} 25. Na1 {[%clk 0:00:37]}  d5 {[%clk 0:02:02]} 26. Kc2 {[%clk 0:00:29]}  d4 {[%clk 0:02:01]} 27. Nb3 {[%clk 0:00:24]}  b6 {[%clk 0:02:00]} 28. Be2 {[%clk 0:00:08]}  a5 {[%clk 0:01:56]} 29. cxd4 {[%clk 0:00:05]}  a4 {[%clk 0:01:56]} 30. Nd2 {[%clk 0:00:02]}  cxd4 {[%clk 0:01:56]} 31. Nf3 {[%clk 0:00:03]}  Nb4+ {[%clk 0:01:56]} 32. Kd2 {[%clk 0:00:03]}  Nc6 {[%clk 0:01:56]} 33. Bd1 {[%clk 0:00:04]}  b5 {[%clk 0:01:55]} 0-1


[Site "https://www.chess.com"]

[Event "Titled Tuesday Blitz November 22 Early 2022"]
[White "Sailer, Mike"]
[Black "Stankovic, Ivan G"]
[WhiteFideId "2012901"]
[BlackFideId "902837"]
[WhiteElo "2109"]
[BlackElo "2226"]
[Result "1/2-1/2"]
[Round "04"]
[TimeControl "180+1"]
[Date "2022.11.23"]
[WhiteClock "0:00:17"]
[BlackClock "0:00:06"]

1. Nf3 {[%clk 0:03:00]}  c5 {[%clk 0:02:56]} 2. c4 {[%clk 0:02:59]}  Nc6 {[%clk 0:02:54]} 3. g3 {[%clk 0:02:59]}  g6 {[%clk 0:02:54]} 4. Bg2 {[%clk 0:02:59]}  Bg7 {[%clk 0:02:55]} 5. O-O {[%clk 0:02:59]}  e5 {[%clk 0:02:55]} 6. d3 {[%clk 0:02:59]}  Nge7 {[%clk 0:02:55]} 7. Nc3 {[%clk 0:03:00]}  O-O {[%clk 0:02:55]} 8. a3 {[%clk 0:03:00]}  d6 {[%clk 0:02:54]} 9. Rb1 {[%clk 0:03:00]}  a5 {[%clk 0:02:54]} 10. Bg5 {[%clk 0:02:59]}  f6 {[%clk 0:02:54]} 11. Bd2 {[%clk 0:02:57]}  Rb8 {[%clk 0:02:54]} 12. Ne1 {[%clk 0:02:54]}  Be6 {[%clk 0:02:54]} 13. Nd5 {[%clk 0:02:41]}  b5 {[%clk 0:02:29]} 14. Nxe7+ {[%clk 0:02:35]}  Nxe7 {[%clk 0:02:27]} 15. b3 {[%clk 0:02:23]}  a4 {[%clk 0:02:15]} 16. bxa4 {[%clk 0:02:06]}  bxc4 {[%clk 0:02:15]} 17. dxc4 {[%clk 0:02:00]}  Bxc4 {[%clk 0:02:14]} 18. Nc2 {[%clk 0:01:47]}  Qd7 {[%clk 0:01:57]} 19. Ne3 {[%clk 0:01:40]}  Ba6 {[%clk 0:01:56]} 20. Nd5 {[%clk 0:01:31]}  Nc6 {[%clk 0:01:40]} 21. Re1 {[%clk 0:01:25]}  Rxb1 {[%clk 0:01:27]} 22. Qxb1 {[%clk 0:01:24]}  Rb8 {[%clk 0:01:26]} 23. Qe4 {[%clk 0:01:09]}  f5 {[%clk 0:01:24]} 24. Qh4 {[%clk 0:01:08]}  Qe6 {[%clk 0:00:59]} 25. Bh6 {[%clk 0:00:59]}  e4 {[%clk 0:00:52]} 26. Bxg7 {[%clk 0:00:55]}  Kxg7 {[%clk 0:00:52]} 27. Nc7 {[%clk 0:00:40]}  Qc8 {[%clk 0:00:39]} 28. Nxa6 {[%clk 0:00:38]}  Qxa6 {[%clk 0:00:40]} 29. f3 {[%clk 0:00:35]}  Qxa4 {[%clk 0:00:19]} 30. fxe4 {[%clk 0:00:34]}  Re8 {[%clk 0:00:16]} 31. exf5 {[%clk 0:00:26]}  Qxh4 {[%clk 0:00:16]} 32. gxh4 {[%clk 0:00:27]}  Nd4 {[%clk 0:00:17]} 33. fxg6 {[%clk 0:00:25]}  hxg6 {[%clk 0:00:17]} 34. Kf2 {[%clk 0:00:23]}  Nf5 {[%clk 0:00:14]} 35. h5 {[%clk 0:00:18]}  gxh5 {[%clk 0:00:13]} 36. Bf3 {[%clk 0:00:17]}  h4 {[%clk 0:00:13]} 37. Rb1 {[%clk 0:00:13]}  Ne3 {[%clk 0:00:10]} 38. Rb7+ {[%clk 0:00:13]}  Kf6 {[%clk 0:00:10]} 39. Rd7 {[%clk 0:00:11]}  Ke6 {[%clk 0:00:09]} 40. Rh7 {[%clk 0:00:10]}  Nd1+ {[%clk 0:00:09]} 41. Ke1 {[%clk 0:00:10]}  Nb2 {[%clk 0:00:08]} 42. Rxh4 {[%clk 0:00:10]}  Rg8 {[%clk 0:00:06]} 43. Kd2 {[%clk 0:00:10]}  d5 {[%clk 0:00:06]} 44. Rh5 {[%clk 0:00:10]}  Nc4+ {[%clk 0:00:05]} 45. Kc3 {[%clk 0:00:10]}  Ne5 {[%clk 0:00:06]} 46. Kd2 {[%clk 0:00:10]}  d4 {[%clk 0:00:05]} 47. Be4 {[%clk 0:00:10]}  Rb8 {[%clk 0:00:06]} 48. Bd3 {[%clk 0:00:09]}  Rb2+ {[%clk 0:00:05]} 49. Kc1 {[%clk 0:00:09]}  Nxd3+ {[%clk 0:00:06]} 50. exd3 {[%clk 0:00:09]}  Ra2 {[%clk 0:00:06]} 51. Rh6+ {[%clk 0:00:09]}  Kd5 {[%clk 0:00:06]} 52. Ra6 {[%clk 0:00:10]}  Rxh2 {[%clk 0:00:05]} 53. a4 {[%clk 0:00:10]}  c4 {[%clk 0:00:04]} 54. dxc4+ {[%clk 0:00:11]}  Kxc4 {[%clk 0:00:05]} 55. Rc6+ {[%clk 0:00:11]}  Kb4 {[%clk 0:00:05]} 56. Rd6 {[%clk 0:00:10]}  Kc3 {[%clk 0:00:05]} 57. Rc6+ {[%clk 0:00:10]}  Kd3 {[%clk 0:00:05]} 58. a5 {[%clk 0:00:11]}  Ra2 {[%clk 0:00:04]} 59. a6 {[%clk 0:00:11]}  Ra3 {[%clk 0:00:02]} 60. Kb2 {[%clk 0:00:11]}  Ra5 {[%clk 0:00:02]} 61. Kb3 {[%clk 0:00:11]}  Ke4 {[%clk 0:00:03]} 62. Kb4 {[%clk 0:00:11]}  Ra1 {[%clk 0:00:04]} 63. Rd6 {[%clk 0:00:11]}  d3 {[%clk 0:00:04]} 64. Kb5 {[%clk 0:00:12]}  Ke3 {[%clk 0:00:05]} 65. Kb6 {[%clk 0:00:12]}  d2 {[%clk 0:00:06]} 66. Rxd2 {[%clk 0:00:12]}  Kxd2 {[%clk 0:00:06]} 67. a7 {[%clk 0:00:13]}  Kd3 {[%clk 0:00:05]} 68. Kb7 {[%clk 0:00:14]}  Rb1+ {[%clk 0:00:06]} 69. Kc7 {[%clk 0:00:15]}  Ra1 {[%clk 0:00:06]} 70. Kb7 {[%clk 0:00:15]}  Rb1+ {[%clk 0:00:06]} 71. Kc7 {[%clk 0:00:16]}  Rc1+ {[%clk 0:00:07]} 72. Kb7 {[%clk 0:00:17]}  Rb1+ {[%clk 0:00:06]} 1/2-1/2


[Site "https://www.chess.com"]

[Event "Titled Tuesday Blitz November 22 Early 2022"]
[White "Salman, Pavel"]
[Black "Petrova, Irina"]
[WhiteFideId "24153753"]
[BlackFideId "14124122"]
[WhiteElo "2187"]
[BlackElo "2023"]
[Result "0-1"]
[Round "04"]
[TimeControl "180+1"]
[Date "2022.11.23"]
[WhiteClock "0:00:37"]
[BlackClock "0:00:34"]

1. d4 {[%clk 0:03:00]}  d6 {[%clk 0:03:00]} 2. Nc3 {[%clk 0:02:59]}  Nf6 {[%clk 0:02:58]} 3. e4 {[%clk 0:02:59]}  e5 {[%clk 0:02:58]} 4. dxe5 {[%clk 0:02:57]}  dxe5 {[%clk 0:02:59]} 5. Qxd8+ {[%clk 0:02:58]}  Kxd8 {[%clk 0:03:00]} 6. Bg5 {[%clk 0:02:58]}  Be6 {[%clk 0:03:00]} 7. O-O-O+ {[%clk 0:02:59]}  Nd7 {[%clk 0:03:00]} 8. Nf3 {[%clk 0:02:59]}  Bd6 {[%clk 0:02:58]} 9. Bxf6+ {[%clk 0:02:55]}  gxf6 {[%clk 0:02:57]} 10. Nd5 {[%clk 0:02:55]}  Kc8 {[%clk 0:02:40]} 11. Nh4 {[%clk 0:02:51]}  Bc5 {[%clk 0:02:29]} 12. f3 {[%clk 0:02:47]}  c6 {[%clk 0:02:28]} 13. Nc3 {[%clk 0:02:42]}  Kc7 {[%clk 0:02:26]} 14. g4 {[%clk 0:02:39]}  b5 {[%clk 0:02:21]} 15. Nf5 {[%clk 0:02:36]}  a5 {[%clk 0:02:10]} 16. h4 {[%clk 0:02:12]}  a4 {[%clk 0:02:09]} 17. a3 {[%clk 0:02:13]}  b4 {[%clk 0:02:03]} 18. axb4 {[%clk 0:02:08]}  Bxb4 {[%clk 0:02:04]} 19. Nb1 {[%clk 0:02:04]}  a3 {[%clk 0:01:56]} 20. Nxa3 {[%clk 0:02:03]}  Bxa3 {[%clk 0:01:57]} 21. bxa3 {[%clk 0:02:04]}  Rxa3 {[%clk 0:01:57]} 22. Bd3 {[%clk 0:01:57]}  Bxf5 {[%clk 0:01:49]} 23. exf5 {[%clk 0:01:44]}  h6 {[%clk 0:01:41]} 24. Kd2 {[%clk 0:01:31]}  Nc5 {[%clk 0:01:37]} 25. Ra1 {[%clk 0:01:31]}  Rha8 {[%clk 0:01:10]} 26. Ra2 {[%clk 0:01:30]}  Rxa2 {[%clk 0:01:08]} 27. Ke3 {[%clk 0:01:14]}  Nxd3 {[%clk 0:01:08]} 28. cxd3 {[%clk 0:01:14]}  R8a3 {[%clk 0:01:06]} 29. Rb1 {[%clk 0:01:12]}  Rc2 {[%clk 0:01:02]} 30. Rd1 {[%clk 0:01:10]}  Rcc3 {[%clk 0:01:02]} 31. Ke4 {[%clk 0:01:09]}  Kd6 {[%clk 0:01:00]} 32. Rd2 {[%clk 0:00:59]}  c5 {[%clk 0:00:51]} 33. f4 {[%clk 0:00:45]}  Ra4+ {[%clk 0:00:49]} 34. Ke3 {[%clk 0:00:45]}  exf4+ {[%clk 0:00:47]} 35. Kf3 {[%clk 0:00:45]}  Rd4 {[%clk 0:00:47]} 36. Ra2 {[%clk 0:00:45]}  Rcxd3+ {[%clk 0:00:46]} 37. Ke2 {[%clk 0:00:46]}  Rd2+ {[%clk 0:00:41]} 38. Rxd2 {[%clk 0:00:44]}  Rxd2+ {[%clk 0:00:42]} 39. Kxd2 {[%clk 0:00:45]}  Ke5 {[%clk 0:00:42]} 40. Kd3 {[%clk 0:00:45]}  Kd5 {[%clk 0:00:35]} 41. Kc3 {[%clk 0:00:36]}  Ke4 {[%clk 0:00:34]} 42. Kc4 {[%clk 0:00:36]}  f3 {[%clk 0:00:34]} 43. g5 {[%clk 0:00:37]}  fxg5 {[%clk 0:00:34]} 0-1


[Site "https://www.chess.com"]

[Event "Titled Tuesday Blitz November 22 Early 2022"]
[White "Sanchez, Robert"]
[Black "Ozates, Tuna"]
[WhiteFideId "2034360"]
[BlackFideId "6354521"]
[WhiteElo "2300"]
[BlackElo "2151"]
[Result "0-1"]
[Round "04"]
[TimeControl "180+1"]
[Date "2022.11.23"]
[WhiteClock "0:00:31"]
[BlackClock "0:01:08"]

1. e4 {[%clk 0:02:55]}  e5 {[%clk 0:02:57]} 2. Nf3 {[%clk 0:02:54]}  Nc6 {[%clk 0:02:58]} 3. Bb5 {[%clk 0:02:54]}  a6 {[%clk 0:02:56]} 4. Ba4 {[%clk 0:02:54]}  Nf6 {[%clk 0:02:55]} 5. d3 {[%clk 0:02:55]}  b5 {[%clk 0:02:54]} 6. Bb3 {[%clk 0:02:55]}  h6 {[%clk 0:02:53]} 7. h3 {[%clk 0:02:54]}  g6 {[%clk 0:02:53]} 8. c3 {[%clk 0:02:51]}  Bg7 {[%clk 0:02:53]} 9. O-O {[%clk 0:02:51]}  O-O {[%clk 0:02:53]} 10. Re1 {[%clk 0:02:50]}  d6 {[%clk 0:02:54]} 11. Nbd2 {[%clk 0:02:50]}  Kh7 {[%clk 0:02:54]} 12. Nf1 {[%clk 0:02:50]}  Ng8 {[%clk 0:02:50]} 13. Bd5 {[%clk 0:02:43]}  Bd7 {[%clk 0:02:49]} 14. Ng3 {[%clk 0:02:40]}  f5 {[%clk 0:02:48]} 15. exf5 {[%clk 0:02:39]}  gxf5 {[%clk 0:02:49]} 16. Nh5 {[%clk 0:02:35]}  Bh8 {[%clk 0:02:49]} 17. a4 {[%clk 0:02:27]}  Nge7 {[%clk 0:02:45]} 18. Bb3 {[%clk 0:02:07]}  Na5 {[%clk 0:02:42]} 19. Bc2 {[%clk 0:02:05]}  c5 {[%clk 0:02:40]} 20. Ng3 {[%clk 0:01:54]}  Nac6 {[%clk 0:02:32]} 21. Bb3 {[%clk 0:01:26]}  d5 {[%clk 0:02:27]} 22. axb5 {[%clk 0:01:15]}  axb5 {[%clk 0:02:27]} 23. Rxa8 {[%clk 0:01:16]}  Qxa8 {[%clk 0:02:25]} 24. Nh4 {[%clk 0:01:04]}  f4 {[%clk 0:02:06]} 25. Nf1 {[%clk 0:00:58]}  Bf6 {[%clk 0:02:00]} 26. Nf3 {[%clk 0:00:57]}  c4 {[%clk 0:01:58]} 27. Bc2 {[%clk 0:00:57]}  cxd3 {[%clk 0:01:57]} 28. Bxd3+ {[%clk 0:00:53]}  e4 {[%clk 0:01:58]} 29. Bxe4+ {[%clk 0:00:51]}  dxe4 {[%clk 0:01:59]} 30. Qxd7 {[%clk 0:00:51]}  exf3 {[%clk 0:01:58]} 31. Bxf4 {[%clk 0:00:45]}  fxg2 {[%clk 0:01:56]} 32. Ng3 {[%clk 0:00:45]}  Qc8 {[%clk 0:01:55]} 33. Qd3+ {[%clk 0:00:39]}  Ng6 {[%clk 0:01:35]} 34. Kxg2 {[%clk 0:00:38]}  Kg7 {[%clk 0:01:27]} 35. Nh5+ {[%clk 0:00:38]}  Kh8 {[%clk 0:01:17]} 36. Bg3 {[%clk 0:00:37]}  Nce5 {[%clk 0:01:12]} 37. Qxb5 {[%clk 0:00:34]}  Qa8+ {[%clk 0:01:09]} 38. Kf1 {[%clk 0:00:30]}  Qh1+ {[%clk 0:01:08]} 39. Ke2 {[%clk 0:00:31]}  Qf3+ {[%clk 0:01:09]} 40. Kf1 {[%clk 0:00:31]}  Qxh5 {[%clk 0:01:08]} 0-1


[Site "https://www.chess.com"]

[Event "Titled Tuesday Blitz November 22 Early 2022"]
[White "Saravana, Krishnan P."]
[Black "Hrabinska, Myroslava"]
[WhiteFideId "5018382"]
[BlackFideId "14109190"]
[WhiteElo "2155"]
[BlackElo "2171"]
[Result "1-0"]
[Round "04"]
[TimeControl "180+1"]
[Date "2022.11.23"]
[WhiteClock "0:00:51"]
[BlackClock "0:00:26"]

1. d4 {[%clk 0:03:00]}  Nf6 {[%clk 0:02:59]} 2. c4 {[%clk 0:02:59]}  e6 {[%clk 0:02:57]} 3. Nf3 {[%clk 0:02:58]}  d5 {[%clk 0:02:53]} 4. Nc3 {[%clk 0:02:58]}  Be7 {[%clk 0:02:52]} 5. Bg5 {[%clk 0:02:57]}  O-O {[%clk 0:02:50]} 6. e3 {[%clk 0:02:57]}  h6 {[%clk 0:02:49]} 7. Bxf6 {[%clk 0:02:57]}  Bxf6 {[%clk 0:02:50]} 8. Qc2 {[%clk 0:02:55]}  b6 {[%clk 0:02:42]} 9. cxd5 {[%clk 0:02:54]}  exd5 {[%clk 0:02:42]} 10. Bd3 {[%clk 0:02:52]}  c5 {[%clk 0:02:41]} 11. Nxd5 {[%clk 0:02:33]}  Qxd5 {[%clk 0:02:27]} 12. Bh7+ {[%clk 0:02:25]}  Kh8 {[%clk 0:02:27]} 13. Be4 {[%clk 0:02:25]}  Qe6 {[%clk 0:02:19]} 14. Bxa8 {[%clk 0:02:24]}  cxd4 {[%clk 0:02:20]} 15. Qe4 {[%clk 0:02:15]}  dxe3 {[%clk 0:02:16]} 16. Qxe6 {[%clk 0:02:13]}  exf2+ {[%clk 0:02:15]} 17. Kxf2 {[%clk 0:02:12]}  Bxe6 {[%clk 0:02:16]} 18. Rac1 {[%clk 0:02:01]}  Bxb2 {[%clk 0:02:11]} 19. Rc7 {[%clk 0:02:00]}  Na6 {[%clk 0:02:07]} 20. Rxa7 {[%clk 0:01:59]}  Nc5 {[%clk 0:01:56]} 21. Rd1 {[%clk 0:01:58]}  g5 {[%clk 0:01:49]} 22. Bc6 {[%clk 0:01:51]}  Rc8 {[%clk 0:01:29]} 23. Ra8 {[%clk 0:01:51]}  Kg7 {[%clk 0:01:27]} 24. Rxc8 {[%clk 0:01:50]}  Bxc8 {[%clk 0:01:28]} 25. Bd5 {[%clk 0:01:45]}  g4 {[%clk 0:01:21]} 26. Ne1 {[%clk 0:01:41]}  Bf5 {[%clk 0:01:18]} 27. g3 {[%clk 0:01:34]}  Na4 {[%clk 0:01:13]} 28. Bb3 {[%clk 0:01:32]}  Nc3 {[%clk 0:01:09]} 29. Rd8 {[%clk 0:01:32]}  Ba3 {[%clk 0:01:07]} 30. Ng2 {[%clk 0:01:29]}  Bc5+ {[%clk 0:01:06]} 31. Ke1 {[%clk 0:01:29]}  Bb1 {[%clk 0:00:57]} 32. Rd7 {[%clk 0:01:27]}  Nxa2 {[%clk 0:00:50]} 33. Rxf7+ {[%clk 0:01:26]}  Kg6 {[%clk 0:00:50]} 34. Nf4+ {[%clk 0:01:24]}  Kg5 {[%clk 0:00:49]} 35. Ne6+ {[%clk 0:01:14]}  Kg6 {[%clk 0:00:49]} 36. Nxc5 {[%clk 0:01:11]}  bxc5 {[%clk 0:00:50]} 37. Rc7 {[%clk 0:01:10]}  Nc1 {[%clk 0:00:45]} 38. Bc4 {[%clk 0:01:09]}  Nd3+ {[%clk 0:00:40]} 39. Bxd3+ {[%clk 0:01:01]}  Bxd3 {[%clk 0:00:41]} 40. Rxc5 {[%clk 0:01:01]}  Be4 {[%clk 0:00:41]} 41. Kd2 {[%clk 0:01:01]}  Kf6 {[%clk 0:00:38]} 42. Ke3 {[%clk 0:01:01]}  Bf3 {[%clk 0:00:32]} 43. Kf4 {[%clk 0:01:00]}  Kg6 {[%clk 0:00:30]} 44. h4 {[%clk 0:01:00]}  Bd1 {[%clk 0:00:28]} 45. Rc6+ {[%clk 0:00:55]}  Kg7 {[%clk 0:00:28]} 46. Kf5 {[%clk 0:00:53]}  Bf3 {[%clk 0:00:26]} 47. Rc7+ {[%clk 0:00:51]} 1-0


[Site "https://www.chess.com"]